bitfinex/quotes_SOLUSD_20241125
["timestamp","ask_amount","ask_price","bid_price","bid_amount"]
[1732574063548,43.29644139,232.87,232.78,13.29644139]
[1732574063854,13.29644139,232.81,232.76,0.5076452]
[1732574064037,30.0,232.79,232.76,0.5076452]
[1732574065632,34.2958,232.79,232.76,0.5076452]
[1732574066244,30.0,232.79,232.76,0.5076452]
[1732574068664,34.2957,232.79,232.76,0.5076452]
[1732574068947,30.0,232.79,232.76,0.5076452]
[1732574069953,30.0,232.79,232.76,13.80408659]
[1732574070640,30.0,232.79,232.78,13.29644139]
[1732574074364,30.0,232.79,232.76,0.5076452]
[1732574074543,4.2946,232.85,232.77,13.29644139]
[1732574075643,13.29644139,232.84,232.76,0.5076452]
[1732574075839,13.29644139,232.82,232.76,0.5076452]
[1732574077260,32.3681,232.8,232.76,0.5076452]
[1732574077562,30.0,232.77,232.76,0.5076452]
[1732574080157,47.6017,232.77,232.76,0.5076452]
[1732574080764,43.3057,232.77,232.76,0.5076452]
[1732574081067,47.6017,232.77,232.76,0.5076452]
[1732574083949,60.89814139,232.77,232.76,0.5076452]
[1732574084459,56.12091645,232.77,232.76,0.5076452]
[1732574087169,47.6017,232.77,232.76,0.5076452]
[1732574087377,56.12091645,232.77,232.76,0.5076452]
[1732574087871,47.6017,232.77,232.76,0.0076452]
[1732574089046,47.5717,232.77,232.76,0.0076452]
[1732574090750,56.09091645,232.77,232.76,0.0076452]
[1732574091867,79.86780045,232.77,232.76,0.0076452]
[1732574092564,111.20840045,232.77,232.76,0.0076452]
[1732574092776,47.5717,232.77,232.76,0.0076452]
[1732574092951,56.09091645,232.77,232.76,0.0076452]
[1732574093146,79.86780045,232.77,232.76,0.0076452]
[1732574093545,71.348584,232.77,232.76,0.0076452]
[1732574093844,79.86780045,232.77,232.76,0.0076452]
[1732574094261,71.348584,232.77,232.76,0.0076452]
[1732574094470,79.86780045,232.77,232.76,0.0076452]
[1732574095469,71.348584,232.77,232.76,0.0076452]
[1732574095678,92.70780045,232.77,232.76,0.0076452]
[1732574095875,79.86780045,232.77,232.76,0.0076452]
[1732574097866,56.09091645,232.77,232.76,0.0076452]
[1732574098076,47.5717,232.77,232.76,0.0076452]
[1732574098472,56.09091645,232.77,232.76,0.0076452]
[1732574101484,47.5717,232.77,232.76,0.0076452]
[1732574101667,56.09091645,232.77,232.76,0.0076452]
[1732574102984,34.266,232.77,232.76,0.0076452]
[1732574103190,42.78521645,232.77,232.76,0.0076452]
[1732574103694,29.97,232.77,232.76,0.0076452]
[1732574111378,29.97,232.77,232.69,8.51921645]
[1732574111379,23.776884,232.76,232.67,11.42973829]
[1732574111579,30.0,232.74,232.59,2.30081833]
[1732574111782,8.51921645,232.64,232.59,2.30081833]
[1732574112188,10.85599335,232.73,232.59,2.30081833]
[1732574112491,30.0,232.64,232.59,2.30081833]
[1732574112694,38.51921645,232.64,232.59,2.30081833]
[1732574112989,30.0,232.64,232.59,2.30081833]
[1732574113179,38.51921645,232.64,232.59,2.30081833]
[1732574114276,43.32661365,232.64,232.59,2.30081833]
[1732574115599,49.02925196,232.64,232.59,2.30081833]
[1732574116482,35.70263831,232.64,232.59,2.30081833]
[1732574116679,49.02925196,232.64,232.63,2.5935]
[1732574116997,43.32661365,232.64,232.63,2.5935]
[1732574117195,13.32661365,232.6,232.59,2.30081833]
[1732574117385,56.6532273,232.6,232.52,0.5076452]
[1732574117592,13.32661365,232.53,232.52,0.5076452]
[1732574117778,19.75364085,232.53,232.52,0.0076452]
[1732574118405,62.61284085,232.53,232.52,0.0076452]
[1732574118576,42.8592,232.53,232.52,0.0076452]
[1732574118781,60.48631365,232.53,232.52,0.0076452]
[1732574119010,66.91334085,232.53,232.52,0.0076452]
[1732574119307,20.0,232.5,232.33,43.943964]
[1732574119505,13.32661365,232.42,232.33,43.943964]
[1732574119675,22.32759202,232.44,232.35,13.32661365]
[1732574120496,30.0,232.42,232.37,13.32661365]
[1732574121684,30.0,232.42,232.33,30.61735035]
[1732574121685,30.0,232.42,232.39,13.32661365]
[1732574121879,30.0,232.42,232.4,4.3028]
[1732574122083,30.0,232.42,232.4,13.32661365]
[1732574122704,30.0,232.42,232.33,30.61735035]
[1732574122905,30.0,232.42,232.39,13.32661365]
[1732574123993,30.0,232.42,232.4,4.3028]
[1732574124188,30.0,232.42,232.39,13.32661365]
[1732574124595,30.0,232.42,232.4,4.3028]
[1732574126708,30.0,232.42,232.41,26.93318865]
[1732574128818,9.00097837,232.44,232.42,4.3025]
[1732574129322,9.00097837,232.44,232.41,13.606575]
[1732574129494,9.00097837,232.44,232.41,17.909175]
[1732574129693,30.0,232.43,232.41,17.909175]
[1732574132707,10.0,232.4,232.33,0.12935035]
[1732574132910,13.32661365,232.38,232.33,0.12935035]
[1732574133320,30.0,232.39,232.33,0.12935035]
[1732574133998,30.0,232.36,232.33,0.12935035]
[1732574134511,30.0,232.36,232.29,4.8124452]
[1732574134908,43.32661365,232.36,232.29,4.8124452]
[1732574135227,30.0,232.36,232.29,18.13905885]
[1732574136424,13.32661365,232.35,232.29,0.5076452]
[1732574136627,30.0,232.33,232.29,0.5076452]
[1732574136823,30.0,232.33,232.29,4.8125452]
[1732574137430,30.0,232.33,232.29,18.13915885]
[1732574137603,30.0,232.33,232.29,4.8125452]
[1732574137923,30.0,232.33,232.29,24.8125452]
[1732574139523,13.32661365,232.38,232.29,38.13915885]
[1732574140216,13.32661365,232.36,232.29,24.8125452]
[1732574140618,13.32661365,232.38,232.29,38.13915885]
[1732574141327,13.32661365,232.36,232.29,18.13915885]
[1732574142620,30.0,232.32,232.29,4.8125452]
[1732574142836,30.0,232.32,232.29,18.13915885]
[1732574143202,30.0,232.32,232.29,4.8125452]
[1732574144735,30.0,232.32,232.29,18.13915885]
[1732574145436,30.0,232.32,232.29,4.8125452]
[1732574146215,30.0,232.32,232.29,18.13915885]
[1732574146413,30.0,232.32,232.29,13.36016173]
[1732574146732,30.0,232.32,232.29,13.1991452]
[1732574146931,30.0,232.32,232.31,8.54761653]
[1732574147333,30.0,232.32,232.31,12.85211653]
[1732574147529,27.8286,232.32,232.31,64.30421653]
[1732574147714,27.8286,232.32,232.31,68.4481]
[1732574147915,27.8286,232.32,232.31,76.99571653]
[1732574148315,9.00097837,232.44,232.32,20.0]
[1732574148535,9.00097837,232.44,232.37,8.54761653]
[1732574148737,30.0,232.38,232.37,8.54761653]
[1732574149308,9.00097837,232.44,232.33,15.0647]
[1732574149509,9.00097837,232.44,232.35,8.54761653]
[1732574149912,9.00097837,232.44,232.33,15.0647]
[1732574150124,9.00097837,232.44,232.36,8.54761653]
[1732574150328,9.00097837,232.44,232.36,13.34749042]
[1732574151324,9.00097837,232.44,232.37,4.3034]
[1732574151524,9.00097837,232.44,232.38,13.34749042]
[1732574151730,30.0,232.39,232.38,13.34749042]
[1732574152449,30.0,232.39,232.37,4.3034]
[1732574152644,30.0,232.39,232.35,4.3036]
[1732574152847,30.0,232.39,232.34,13.34749042]
[1732574153538,30.0,232.39,232.35,4.3038]
[1732574155731,30.0,232.39,232.33,4.3042]
[1732574156935,30.0,232.39,232.32,13.34749042]
[1732574157335,47.65059042,232.39,232.32,13.34749042]
[1732574158025,47.65059042,232.39,232.32,17.65189042]
[1732574158227,47.65059042,232.39,232.32,13.34749042]
[1732574159230,47.65059042,232.39,232.3,17.65219042]
[1732574159954,30.0,232.39,232.32,13.34749042]
[1732574160453,30.0,232.39,232.3,28.41409042]
[1732574161026,30.0,232.39,232.3,15.0666]
[1732574161251,30.0,232.39,232.3,28.41409042]
[1732574162327,30.0,232.39,232.3,17.65219042]
[1732574163229,43.34749042,232.39,232.3,17.65219042]
[1732574163948,47.65059042,232.39,232.3,17.65219042]
[1732574164660,31.0914,232.38,232.29,4.8125452]
[1732574164957,30.0,232.34,232.29,4.8125452]
[1732574165423,30.0,232.34,232.3,13.34749042]
[1732574166342,30.0,232.34,232.25,12.672746]
[1732574166548,30.0,232.34,232.27,13.34749042]
[1732574166754,30.0,232.34,232.29,13.34749042]
[1732574167342,30.0,232.34,232.26,15.0692]
[1732574167535,12.5409,232.33,232.25,12.672746]
[1732574167742,13.34749042,232.29,232.25,12.672746]
[1732574167952,13.34749042,232.31,232.25,12.672746]
[1732574168259,74.43889042,232.32,232.25,12.672746]
[1732574168462,30.0,232.32,232.25,16.978346]
[1732574168663,30.0,232.26,232.25,12.672746]
[1732574169354,30.0,232.26,232.25,10.172746]
[1732574172432,30.0,232.26,232.25,18.72270414]
[1732574172954,29.5,232.26,232.25,18.72270414]
[1732574174346,9.35845883,232.35,232.25,18.72270414]
[1732574174547,9.35845883,232.35,232.3,8.54995814]
[1732574175773,9.35845883,232.35,232.32,8.54995814]
[1732574176153,9.35845883,232.35,232.29,20.0]
[1732574176459,9.35845883,232.35,232.29,8.54995814]
[1732574176776,9.35845883,232.35,232.31,8.54995814]
[1732574177077,9.35845883,232.35,232.33,8.54995814]
[1732574177579,30.0,232.34,232.33,8.54995814]
[1732574178081,30.0,232.34,232.33,12.85415814]
[1732574178877,9.35845883,232.35,232.33,12.85415814]
[1732574180261,9.35845883,232.35,232.33,24.3042]
[1732574180657,9.35845883,232.35,232.34,8.54995814]
[1732574180864,39.35845883,232.35,232.34,8.54995814]
[1732574182670,39.35845883,232.35,232.33,24.3042]
[1732574182986,39.35845883,232.35,232.34,8.54995814]
[1732574184499,9.35845883,232.35,232.34,8.54995814]
[1732574185283,9.35845883,232.35,232.34,12.85395814]
[1732574185488,51.59885883,232.35,232.17,10.0]
[1732574185670,30.0,232.34,232.27,4.3052]
[1732574186400,30.0,232.34,232.27,17.66183559]
[1732574186563,30.0,232.34,232.29,13.35663559]
[1732574187890,30.0,232.34,232.31,13.35663559]
[1732574188590,30.0,232.34,232.33,13.35663559]
[1732574188800,30.0,232.34,232.31,13.35663559]
[1732574188983,9.35845883,232.35,232.31,13.35663559]
[1732574190308,9.35845883,232.35,232.33,13.35663559]
[1732574190487,9.35845883,232.35,232.33,17.66063559]
[1732574191101,30.0,232.34,232.33,17.66063559]
[1732574191306,30.0,232.34,232.33,4.304]
[1732574199417,9.35845883,232.35,232.33,4.304]
[1732574199627,9.35845883,232.35,232.34,13.35663559]
[1732574199830,39.35845883,232.35,232.34,17.66063559]
[1732574203192,39.35845883,232.35,232.34,27.66063559]
[1732574203393,36.94133732,232.35,232.34,27.66063559]
[1732574203827,16.35233732,232.35,232.34,51.56300959]
[1732574204148,12.91233732,232.35,232.34,51.56300959]
[1732574204353,12.91233732,232.35,232.34,51.43751959]
[1732574204854,12.91233732,232.35,232.34,51.56300959]
[1732574205058,12.91233732,232.35,232.34,51.43751959]
[1732574205350,13.35663559,232.49,232.37,10.0]
[1732574205554,13.35663559,232.49,232.4,13.35663559]
[1732574205854,13.35663559,232.51,232.4,13.35663559]
[1732574206150,13.35663559,232.51,232.42,13.35663559]
[1732574206354,30.0,232.43,232.42,8.53794204]
[1732574206727,30.0,232.43,232.42,12.84044204]
[1732574208756,14.19993789,232.43,232.42,22.84044204]
[1732574208924,9.44423394,232.47,232.42,33.59674204]
[1732574209128,9.44423394,232.47,232.46,8.53794204]
[1732574209331,39.44423394,232.47,232.46,8.53794204]
[1732574210255,39.44423394,232.47,232.46,12.83974204]
[1732574210825,9.44423394,232.47,232.46,12.83974204]
[1732574211146,39.44423394,232.47,232.46,12.83974204]
[1732574212929,39.44423394,232.47,232.46,4.3018]
[1732574213172,39.44423394,232.47,232.46,8.53794204]
[1732574214545,39.44423394,232.47,232.46,12.83974204]
[1732574215962,39.44423394,232.47,232.46,4.3018]
[1732574216257,39.44423394,232.47,232.46,12.83974204]
[1732574217466,9.44423394,232.47,232.46,12.83974204]
[1732574218554,9.44423394,232.47,232.46,22.83974204]
[1732574220468,37.86358284,232.47,232.46,14.3018]
[1732574220787,37.86358284,232.47,232.46,22.83974204]
[1732574221875,37.86358284,232.47,232.46,4.3018]
[1732574222182,37.86358284,232.47,232.46,12.83974204]
[1732574222505,37.86358284,232.47,232.46,22.83974204]
[1732574222878,8.53794204,232.58,232.46,22.83974204]
[1732574223077,12.4955,232.61,232.51,8.53794204]
[1732574223390,21.03344204,232.61,232.51,8.53794204]
[1732574223566,12.4955,232.61,232.51,8.53794204]
[1732574223773,21.03344204,232.61,232.51,8.53794204]
[1732574224076,21.03344204,232.61,232.52,4.3007]
[1732574224694,12.4955,232.61,232.53,8.53794204]
[1732574224869,30.0,232.54,232.53,8.53794204]
[1732574225567,30.0,232.54,232.52,4.3007]
[1732574225992,30.0,232.54,232.45,10.7548]
[1732574226200,30.0,232.54,232.47,8.53794204]
[1732574228102,30.0,232.54,232.48,4.3014]
[1732574229108,30.0,232.54,232.46,10.7545]
[1732574229109,30.0,232.54,232.46,15.0563]
[1732574229286,30.0,232.54,232.39,4.3031]
[1732574229287,8.53794204,232.5,232.39,4.3031]
[1732574229484,38.53794204,232.48,232.39,4.3031]
[1732574231390,38.53794204,232.48,232.4,8.53794204]
[1732574231592,30.0,232.48,232.41,4.3027]
[1732574233096,38.53794204,232.48,232.41,4.3027]
[1732574233292,38.53794204,232.48,232.38,4.3032]
[1732574233293,42.83934204,232.48,232.38,4.3032]
[1732574233596,8.53794204,232.42,232.32,8.53794204]
[1732574233828,30.0,232.37,232.29,15.0669]
[1732574234015,30.0,232.37,232.32,8.53794204]
[1732574234211,30.0,232.37,232.29,4.3049]
[1732574234427,30.0,232.37,232.27,4.3052]
[1732574234632,8.53794204,232.36,232.27,4.3052]
[1732574234840,30.0,232.34,232.32,8.53794204]
[1732574235016,30.0,232.34,232.3,8.53794204]
[1732574235638,30.0,232.34,232.31,4.3045]
[1732574236018,30.0,232.34,232.3,8.53794204]
[1732574236211,30.0,232.34,232.27,4.3053]
[1732574236420,60.696,232.34,232.27,4.3053]
[1732574237211,60.696,232.34,232.28,8.53794204]
[1732574237420,60.696,232.34,232.26,8.53794204]
[1732574237840,60.696,232.34,232.28,8.53794204]
[1732574238939,30.0,232.33,232.28,8.53794204]
[1732574239837,30.0,232.33,232.28,12.84294204]
[1732574240372,30.0,232.33,232.25,10.172746]
[1732574240544,30.0,232.33,232.27,8.53794204]
[1732574240744,30.0,232.33,232.29,8.53794204]
[1732574241466,30.0,232.33,232.27,8.53794204]
[1732574244168,30.0,232.33,232.29,8.53794204]
[1732574244346,30.0,232.32,232.29,8.53794204]
[1732574245079,30.0,232.32,232.31,8.53794204]
[1732574246757,30.0,232.32,232.31,12.84244204]
[1732574248072,13.1498,232.41,232.31,12.84244204]
[1732574248279,13.1498,232.41,232.35,8.53794204]
[1732574248466,30.0,232.36,232.35,8.53794204]
[1732574250345,30.0,232.36,232.35,12.84174204]
[1732574250549,14.99432471,232.36,232.35,12.84174204]
[1732574251281,14.99432471,232.36,232.35,4.3038]
[1732574251475,14.99432471,232.36,232.35,12.84174204]
[1732574252051,30.1146,232.51,232.39,20.0]
[1732574252265,8.53794204,232.49,232.39,20.0]
[1732574252464,8.53794204,232.49,232.4,12.84084204]
[1732574252872,8.53794204,232.47,232.38,20.0]
[1732574253061,8.53794204,232.47,232.38,24.3031]
[1732574253977,30.0,232.4,232.38,24.3031]
[1732574255986,30.0,232.4,232.19,21.95537866]
[1732574255987,30.0,232.4,232.28,4.3051]
[1732574256182,30.0,232.4,232.34,8.53794204]
[1732574256483,30.0,232.4,232.29,10.0]
[1732574256484,30.0,232.4,232.36,8.53794204]
[1732574257885,30.0,232.4,232.34,8.53794204]
[1732574259979,30.0,232.4,232.34,12.84184204]
[1732574261955,30.0,232.4,232.34,8.53794204]
[1732574262483,30.0,232.4,232.34,12.84194204]
[1732574262781,34.3029,232.4,232.32,8.53794204]
[1732574263287,30.1146,232.39,232.31,8.53794204]
[1732574263491,30.0,232.38,232.31,8.53794204]
[1732574264064,30.0,232.38,232.31,12.84244204]
[1732574267081,29.98,232.38,232.31,12.84244204]
[1732574267285,29.98,232.38,232.27,1.44230821]
[1732574267478,34.2833,232.38,232.31,8.53794204]
[1732574268194,34.2833,232.38,232.28,24.3051]
[1732574268372,34.2833,232.38,232.32,8.53794204]
[1732574268571,53.57944204,232.38,232.25,10.172746]
[1732574268778,30.0354,232.37,232.25,14.478346]
[1732574269091,60.0354,232.37,232.26,8.53794204]
[1732574269693,4.3036,232.36,232.26,8.53794204]
[1732574269999,29.98,232.34,232.26,8.53794204]
[1732574271002,4.3042,232.33,232.26,8.53794204]
[1732574271172,30.0,232.3,232.26,8.53794204]
[1732574271375,42.1161,232.3,232.25,10.172746]
[1732574271679,42.1161,232.3,232.26,8.53794204]
[1732574272592,42.1161,232.3,232.28,8.53794204]
[1732574273701,42.1161,232.3,232.25,14.478346]
[1732574274000,42.1161,232.3,232.28,8.53794204]
[1732574274471,42.1161,232.3,232.25,14.478346]
[1732574274670,42.1161,232.3,232.28,8.53794204]
[1732574277996,42.1161,232.3,232.26,4.3055]
[1732574278193,42.1161,232.3,232.27,8.53794204]
[1732574278884,12.1161,232.3,232.27,8.53794204]
[1732574279905,12.1161,232.3,232.25,10.172746]
[1732574279906,16.4209,232.3,232.25,10.172746]
[1732574280205,12.1161,232.3,232.25,18.71068804]
[1732574280778,16.4209,232.3,232.25,10.172746]
[1732574281082,16.4209,232.3,232.25,18.71068804]
[1732574281994,30.0,232.27,232.25,18.71068804]
[1732574282190,30.0,232.27,232.25,10.172746]
[1732574282613,30.0,232.27,232.25,18.71068804]
[1732574282997,30.0,232.27,232.25,10.172746]
[1732574283614,30.4635,232.26,232.25,10.172746]
[1732574283800,60.4635,232.26,232.25,10.172746]
[1732574284009,64.769,232.26,232.25,10.172746]
[1732574289622,60.4635,232.26,232.25,10.172746]
[1732574290327,64.769,232.26,232.25,10.172746]
[1732574295523,60.4635,232.26,232.25,10.172746]
[1732574295911,38.53794204,232.26,232.25,10.172746]
[1732574297236,30.0,232.26,232.25,10.172746]
[1732574297401,38.53794204,232.26,232.25,10.172746]
[1732574297597,30.0,232.26,232.25,10.172746]
[1732574297826,38.53794204,232.26,232.25,10.172746]
[1732574299529,30.0,232.26,232.25,10.172746]
[1732574299723,38.53794204,232.26,232.25,10.172746]
[1732574301138,10.0,232.24,232.12,1.39371811]
[1732574301309,30.4635,232.13,232.12,1.39371811]
[1732574301503,13.1162,232.14,232.12,1.39371811]
[1732574302018,21.65414204,232.14,232.12,1.39371811]
[1732574302320,10.0,232.21,232.12,1.39371811]
[1732574302321,30.0,232.13,232.12,1.39371811]
[1732574305928,30.0,232.13,232.12,9.93166015]
[1732574306134,30.0,232.13,232.12,1.39371811]
[1732574306323,30.0,232.13,231.93,31.447]
[1732574306525,30.0,232.12,232.08,8.53794204]
[1732574306741,30.0,232.12,232.05,15.5904452]
[1732574306909,30.0,232.12,232.05,4.8169452]
[1732574307111,30.0,232.12,232.11,8.53794204]
[1732574307334,30.0,232.12,232.05,15.5904452]
[1732574307541,30.0,232.12,232.1,4.3083]
[1732574308017,30.0,232.12,232.11,8.53794204]
[1732574308516,4.3052,232.28,232.11,8.53794204]
[1732574308517,12.84314204,232.28,232.11,8.53794204]
[1732574308720,12.84314204,232.28,232.17,8.53794204]
[1732574308916,30.0,232.18,232.1,25.0795]
[1732574309119,12.84314204,232.28,232.16,8.53794204]
[1732574309531,12.84314204,232.28,232.17,4.3071]
[1732574310238,8.53794204,232.24,232.11,4.3083]
[1732574310411,16.536,232.28,232.13,13.37225472]
[1732574310412,13.37225472,232.25,232.13,13.37225472]
[1732574310612,13.37225472,232.25,232.15,13.37225472]
[1732574311930,13.37225472,232.25,232.16,4.3073]
[1732574312133,13.37225472,232.22,232.1,1.43323484]
[1732574312335,10.0,232.23,232.09,4.3085]
[1732574312512,13.37225472,232.19,232.09,17.68075472]
[1732574312715,13.37225472,232.21,232.09,17.68075472]
[1732574312915,13.37225472,232.19,232.09,17.68075472]
[1732574313126,13.37225472,232.21,232.09,17.68075472]
[1732574313534,30.0,232.17,232.09,17.68075472]
[1732574315336,30.0,232.17,232.09,4.3085]
[1732574315652,30.0,232.17,232.1,13.37225472]
[1732574316010,30.0,232.17,232.11,4.3083]
[1732574316613,30.0,232.17,232.12,13.37225472]
[1732574317027,30.0,232.17,232.06,10.0]
[1732574317028,43.37225472,232.17,232.06,4.3092]
[1732574317842,43.37225472,232.17,232.07,13.37225472]
[1732574318015,43.37225472,232.17,232.08,4.3088]
[1732574319721,13.37225472,232.17,232.08,4.3088]
[1732574320926,13.37225472,232.17,232.06,17.68145472]
[1732574321322,13.37225472,232.17,232.06,4.3092]
[1732574321520,13.37225472,232.17,232.06,17.68145472]
[1732574321742,4.3062,232.22,232.1,13.37225472]
[1732574321945,13.37225472,232.21,232.1,13.37225472]
[1732574322148,13.37225472,232.19,232.08,13.37225472]
[1732574322740,30.0,232.16,232.1,13.37225472]
[1732574323128,13.37225472,232.19,232.11,4.3083]
[1732574323728,13.37225472,232.17,232.11,4.3083]
[1732574324130,30.0,232.15,232.11,4.3083]
[1732574324633,30.0,232.15,232.08,13.37225472]
[1732574324847,30.0,232.15,232.09,4.3086]
[1732574325531,30.0,232.15,232.1,13.37225472]
[1732574325950,29.97995,232.15,232.1,13.37225472]
[1732574326730,29.97995,232.15,232.11,4.3083]
[1732574327852,29.97995,232.15,232.08,13.37225472]
[1732574328222,29.97995,232.15,232.07,4.309]
[1732574328650,29.97995,232.15,232.07,17.68125472]
[1732574328856,43.35220472,232.15,232.07,17.68125472]
[1732574329635,43.35220472,232.15,232.07,4.309]
[1732574330163,29.97995,232.15,232.09,13.37225472]
[1732574330459,29.97995,232.15,232.07,17.68125472]
[1732574332371,29.97995,232.15,232.07,4.309]
[1732574332535,38.54407026,232.15,232.07,4.309]
[1732574332732,29.97995,232.15,232.07,4.309]
[1732574333053,8.56412026,232.14,232.07,4.309]
[1732574333251,30.0,232.13,232.06,4.3092]
[1732574334043,38.56412026,232.13,232.06,4.3092]
[1732574334266,12.9579,232.12,232.05,4.8169452]
[1732574334563,8.56412026,232.09,232.05,0.5076452]
[1732574335338,38.56412026,232.07,232.05,0.5076452]
[1732574335649,10.0,232.06,232.05,0.5076452]
[1732574336255,56.1221,232.06,232.05,0.5076452]
[1732574336560,99.52128657,232.06,232.05,0.5076452]
[1732574336771,99.52128657,232.06,232.0,22.986206]
[1732574336772,10.0,232.05,232.0,22.986206]
[1732574336958,23.39918657,232.01,232.0,22.986206]
[1732574337267,14.3101,232.01,232.0,22.986206]
[1732574337433,14.3101,232.01,231.82,0.5076452]
[1732574337434,13.39918657,231.95,231.86,13.39918657]
[1732574337644,13.39918657,231.93,231.84,17.71248657]
[1732574338040,13.39918657,231.85,231.74,0.4]
[1732574338335,34.85150373,231.92,231.74,13.79918657]
[1732574338537,10.0,231.66,231.65,1.005]
[1732574338743,10.0,231.82,231.65,1.005]
[1732574338964,40.0,231.83,231.65,37.698]
[1732574339140,10.0,231.81,231.65,37.698]
[1732574339455,10.0,231.81,231.73,13.39918657]
[1732574339661,10.0,231.81,231.67,15.1076]
[1732574339868,10.0,231.81,231.73,13.39918657]
[1732574340035,10.0,231.7,231.65,1.005]
[1732574340236,10.0,231.7,231.65,5.3216]
[1732574340436,4.3139,231.81,231.65,1.005]
[1732574340437,10.0,231.66,231.65,1.005]
[1732574341441,20.0,231.66,231.65,1.005]
[1732574341746,20.0,231.66,231.58,0.5076452]
[1732574341747,10.0,231.59,231.58,0.5076452]
[1732574341957,33.39918657,231.59,231.58,0.5076452]
[1732574342146,29.19044267,231.59,231.58,0.5076452]
[1732574342453,21.71144557,231.59,231.58,0.5076452]
[1732574342657,37.02695567,231.59,231.58,0.5076452]
[1732574342859,31.5258307,231.59,231.58,0.5076452]
[1732574343070,10.0,231.59,231.58,0.5076452]
[1732574343359,47.77300615,231.59,231.58,0.5076452]
[1732574343564,52.09090615,231.59,231.58,0.5076452]
[1732574343764,36.24717545,231.59,231.58,0.5076452]
[1732574343937,10.0,231.59,231.58,0.5076452]
[1732574345467,24.3179,231.59,231.58,0.5076452]
[1732574345649,29.23449962,231.59,231.58,0.5076452]
[1732574345964,14.91659962,231.59,231.58,0.5076452]
[1732574347053,10.0,231.59,231.58,0.5076452]
[1732574348566,0.95947727,231.59,231.58,22.0334759]
[1732574348769,0.95947727,231.61,231.58,22.0334759]
[1732574348960,0.95947727,231.61,231.58,26.3514759]
[1732574349161,0.95947727,231.61,231.6,21.5258307]
[1732574349668,0.95947727,231.62,231.61,4.3176]
[1732574349845,0.95947727,231.61,231.6,21.5258307]
[1732574350949,0.95947727,231.64,231.61,4.3176]
[1732574351146,0.95947727,231.66,231.63,21.5258307]
[1732574351349,0.95947727,231.66,231.61,4.3176]
[1732574351350,0.95947727,231.68,231.65,21.5258307]
[1732574351554,0.95947727,231.68,231.67,21.5258307]
[1732574351854,0.95947727,231.75,231.67,21.5258307]
[1732574352059,0.95947727,231.68,231.64,20.0]
[1732574352262,0.95947727,231.72,231.66,21.5258307]
[1732574352457,0.95947727,231.75,231.71,21.5258307]
[1732574352770,0.95947727,231.75,231.73,21.5258307]
[1732574353567,0.95947727,231.75,231.6,21.5258307]
[1732574353568,0.95947727,231.72,231.59,4.3179]
[1732574353782,0.95947727,231.69,231.67,21.5258307]
[1732574354145,0.95947727,231.73,231.67,21.5258307]
[1732574354366,0.95947727,231.74,231.69,21.5258307]
[1732574354557,0.95947727,231.74,231.71,21.5258307]
[1732574354743,0.95947727,231.74,231.73,21.5258307]
[1732574355259,0.95947727,231.76,231.73,21.5258307]
[1732574355458,29.0,231.83,231.63,9.16601273]
[1732574355459,0.95947727,231.78,231.75,25.8407307]
[1732574355660,0.95947727,231.78,231.77,21.5258307]
[1732574356173,0.95947727,231.8,231.77,21.5258307]
[1732574356379,0.95947727,231.78,231.77,21.5258307]
[1732574357451,29.0,231.83,231.77,21.5258307]
[1732574357671,0.95947727,231.82,231.79,21.5258307]
[1732574357986,0.95947727,231.77,231.73,4.3153]
[1732574358193,0.95947727,231.79,231.74,21.5258307]
[1732574358380,0.95947727,231.81,231.74,21.5258307]
[1732574358584,20.7783,231.95,231.73,4.3153]
[1732574358585,21.5258307,231.86,231.76,21.5258307]
[1732574358788,21.5258307,231.86,231.76,25.8405307]
[1732574358984,21.5258307,231.9,231.79,21.5258307]
[1732574359183,21.5258307,231.9,231.81,21.5258307]
[1732574359490,4.3111,231.96,231.76,4.3147]
[1732574359491,21.5258307,231.93,231.83,21.5258307]
[1732574361301,21.5258307,231.99,231.9,21.5258307]
[1732574361995,21.5258307,231.97,231.86,21.5258307]
[1732574362292,21.5258307,231.97,231.87,4.3127]
[1732574362599,21.5258307,231.97,231.88,21.5258307]
[1732574362784,4.3103,232.01,231.88,21.5258307]